fUSD/lending_fUSD_20260406
["ID","MTS","AMOUNT","RATE_DAILY","PERIOD"]
[419907456,1775496648272,-1715.941805,0.0001422,2]
[419907457,1775496648282,-545.409279,0.0001422,2]
[419907458,1775496648291,-1715.941805,0.0001422,2]
[419907459,1775496648300,-545.409279,0.0001422,2]
[419907460,1775496648310,-1715.941805,0.0001422,2]
[419907461,1775496648319,-545.409279,0.0001422,2]
[419907462,1775496648328,-1715.941805,0.0001422,2]
[419907463,1775496648338,-151.0,0.0001422,2]
[419907464,1775496648347,-1324.90173,0.0001422,2]
[419907465,1775496648357,-151.0,0.0001422,2]
[419907466,1775496648366,-151.0,0.0001422,2]
[419907467,1775496648376,-1324.90173,0.0001422,2]
[419907468,1775496648386,-1324.90173,0.0001422,2]
[419907469,1775496648395,-151.0,0.0001422,2]
[419907470,1775496648404,-151.0,0.0001422,2]
[419907471,1775496648414,-1324.90173,0.0001422,2]
[419907472,1775496648423,-310.094312,0.0001422,2]
[419907473,1775496648433,-151.0,0.0001422,2]
[419907474,1775496648442,-151.0,0.0001422,2]
[419907475,1775496648452,-310.094312,0.0001422,2]
[419907476,1775496648462,-310.094312,0.0001422,2]
[419907477,1775496648472,-182.274065,0.0001422,2]
[419907478,1775496648482,-310.094312,0.0001422,2]
[419907479,1775496648492,-151.0,0.0001422,2]
[419907480,1775496648502,-151.0,0.0001422,2]
[419907481,1775496648511,-729.469798,0.0001422,2]
[419907482,1775496648911,-729.469798,0.0001422,2]
[419907483,1775496648922,-729.469798,0.0001422,2]
[419907484,1775496648931,-729.469798,0.0001422,2]
[419907485,1775496648941,-151.0,0.0001422,2]
[419907486,1775496648950,-151.0,0.0001422,2]
[419907487,1775496648959,-151.0,0.0001422,2]
[419907488,1775496648968,-254.207423,0.0001422,2]
[419907489,1775496648978,-151.0,0.0001422,2]
[419907490,1775496648987,-151.0,0.0001422,2]
[419907491,1775496648997,-454.96662,0.0001422,2]
[419907492,1775496649006,-235.211948,0.0001422,2]
[419907493,1775496649015,-254.207423,0.0001422,2]
[419907494,1775496649025,-151.0,0.0001422,2]
[419907495,1775496649034,-454.96662,0.0001422,2]
[419907496,1775496649043,-235.211948,0.0001422,2]
[419907497,1775496649053,-151.0,0.0001422,2]
[419907498,1775496649063,-254.207423,0.0001422,2]
[419907499,1775496649072,-454.96662,0.0001422,2]
[419907500,1775496649081,-235.211948,0.0001422,2]
[419907501,1775496649090,-151.0,0.0001422,2]
[419907502,1775496649100,-232.534013,0.0001422,2]
[419907503,1775496649109,-254.207423,0.0001422,2]
[419907504,1775496649119,-151.0,0.0001422,2]
[419907505,1775496649128,-454.96662,0.0001422,2]
[419907506,1775496649138,-235.211948,0.0001422,2]
[419907507,1775496649148,-232.534013,0.0001422,2]
[419907508,1775496649158,-151.0,0.0001422,2]
[419907509,1775496649167,-232.534013,0.0001422,2]
[419907510,1775496649177,-151.0,0.0001422,2]
[419907511,1775496649187,-232.534013,0.0001422,2]
[419907512,1775496649196,-151.0,0.0001422,2]
[419907513,1775496649206,-151.0,0.0001422,2]
[419907514,1775496649217,-151.0,0.0001422,2]
[419907515,1775496649227,-386.067913,0.0001422,2]
[419907516,1775496649236,-151.0,0.0001422,2]
[419907517,1775496649250,-165.599643,0.0001422,2]
[419907518,1775496649260,-151.0,0.0001422,2]
[419907519,1775496649269,-386.067913,0.0001422,2]
[419907520,1775496649279,-151.0,0.0001422,2]
[419907521,1775496649289,-151.0,0.0001422,2]
[419907522,1775496649298,-151.0,0.0001422,2]
[419907523,1775496649308,-386.067913,0.0001422,2]
[419907524,1775496649318,-585.190594,0.0001422,2]
[419907525,1775496649328,-151.0,0.0001422,2]
[419907526,1775496649338,-386.067913,0.0001422,2]
[419907527,1775496649347,-151.0,0.0001422,2]
[419907528,1775496649358,-585.190594,0.0001422,2]
[419907529,1775496649368,-157.023332,0.0001422,2]
[419907530,1775496649378,-585.190594,0.0001422,2]
[419907531,1775496649387,-151.0,0.0001422,2]
[419907532,1775496649397,-585.190594,0.0001422,2]
[419907533,1775496649406,-241.488972,0.0001422,2]
[419907534,1775496649415,-151.0,0.0001422,2]
[419907535,1775496649425,-151.0,0.0001422,2]
[419907536,1775496649449,-150.0,0.00014247,2]
[419907537,1775496649458,-1000.0,0.00014247,2]
[419907538,1775496649467,-1000.0,0.00014247,2]
[419907539,1775496649477,-1000.0,0.00014247,2]
[419907540,1775496649486,-1000.0,0.00014247,2]
[419907541,1775496649495,-610.42839416,0.00014247,2]
[419907542,1775496649505,-1000.0,0.00014247,2]
[419907543,1775496649515,-1003.28349871,0.00014247,2]
[419907544,1775496649525,-1000.0,0.00014247,2]
[419907545,1775496649535,-1000.0,0.00014247,2]
[419907546,1775496649544,-921.27560565,0.00014247,2]
[419907547,1775496649554,-1000.0,0.00014247,2]
[419907548,1775496649564,-501.68959435,0.00014247,2]
[419907549,1775496649573,-504.42566006,0.00014247,2]
[419907550,1775496649583,-985.59,0.00014247,2]
[419907551,1775496649592,-271.0,0.00014265,2]
[419907552,1775496649602,-666.0,0.00014266,2]
[419907553,1775496649611,-151.0,0.00014267,2]
[419907554,1775496649621,-151.0,0.00014267,2]
[419907555,1775496649630,-151.0,0.00014267,2]
[419907556,1775496649640,-2987.526904,0.00014267,2]
[419907557,1775496649650,-2987.526904,0.00014267,2]
[419907558,1775496649659,-151.0,0.00014267,2]
[419907559,1775496649668,-151.0,0.00014267,2]
[419907560,1775496649678,-2987.526904,0.00014267,2]
[419907561,1775496649687,-151.0,0.00014267,2]
[419907562,1775496649696,-2987.526904,0.00014267,2]
[419907563,1775496649706,-151.0,0.00014267,2]
[419907564,1775496649715,-151.0,0.00014267,2]
[419907565,1775496649724,-299.610638,0.00014267,2]
[419907566,1775496649733,-246.638861,0.00014267,2]
[419907567,1775496649742,-151.0,0.00014267,2]
[419907568,1775496649752,-246.638861,0.00014267,2]
[419907569,1775496649762,-151.0,0.00014267,2]
[419907570,1775496649771,-246.638861,0.00014267,2]
[419907571,1775496649781,-151.0,0.00014267,2]
[419907572,1775496649790,-151.0,0.00014267,2]
[419907573,1775496649799,-151.0,0.00014267,2]
[419907574,1775496649809,-266.716403,0.00014267,2]
[419907575,1775496649818,-151.0,0.00014267,2]
[419907576,1775496649828,-151.0,0.00014267,2]
[419907577,1775496649837,-246.638861,0.00014267,2]
[419907578,1775496649847,-151.0,0.00014267,2]
[419907579,1775496649856,-151.0,0.00014267,2]
[419907580,1775496649866,-500.2985009,0.00014273,2]
[419907581,1775496649875,-501.47117302,0.00014273,2]
[419907582,1775496649885,-500.0,0.00014273,2]
[419907583,1775496649894,-500.0,0.00014273,2]
[419907584,1775496649904,-500.0,0.00014273,2]
[419907585,1775496649913,-232.77668291,0.00014294,2]
[419907586,1775496649922,-151.0,0.00014298,2]
[419907587,1775496649932,-153.647497,0.00014298,2]
[419907588,1775496649941,-151.0,0.00014298,2]
[419907589,1775496649951,-151.0,0.00014298,2]
[419907590,1775496649960,-151.0,0.00014298,2]
[419907591,1775496649970,-151.0,0.00014298,2]
[419907592,1775496649980,-151.0,0.00014298,2]
[419907593,1775496649990,-151.0,0.00014298,2]
[419907594,1775496649999,-201.754288,0.00014298,2]
[419907595,1775496650008,-201.754288,0.00014298,2]
[419907596,1775496650018,-151.0,0.00014298,2]
[419907597,1775496650028,-201.754288,0.00014298,2]
[419907598,1775496650038,-201.754288,0.00014298,2]
[419907599,1775496650047,-344.12797301,0.000143,2]
[419907600,1775496650056,-586.9,0.00014306,2]
[419907601,1775496650066,-1103.58299771,0.00014308,2]
[419907602,1775496650075,-1071.95537093,0.00014308,2]
[419907603,1775496650084,-1058.89371181,0.00014308,2]
[419907604,1775496650093,-1080.85523651,0.00014308,2]
[419907605,1775496650102,-1102.60702205,0.00014308,2]
[419907606,1775496650111,-1133.75946201,0.00014308,2]
[419907607,1775496650121,-1031.31981905,0.00014308,2]
[419907608,1775496650130,-1140.56740623,0.00014308,2]
[419907609,1775496650140,-375.36655273,0.00014309,2]
[419907610,1775496650149,-271.0,0.00014315,2]
[419907611,1775496650159,-364.30599819,0.00014326,2]
[419907612,1775496650169,-736.0,0.00014353,2]
[419907613,1775496650178,-387.488501,0.00014373,2]
[419907614,1775496650188,-151.0,0.00014373,2]
[419907615,1775496650197,-387.488501,0.00014373,2]
[419907616,1775496650206,-520.378138,0.00014373,2]
[419907617,1775496650215,-183.931815,0.00014373,2]
[419907618,1775496650225,-387.488501,0.00014373,2]
[419907619,1775496650234,-225.159939,0.00014373,2]
[419907620,1775496650244,-520.378138,0.00014373,2]
[419907621,1775496650253,-151.0,0.00014373,2]
[419907622,1775496650263,-151.0,0.00014373,2]
[419907623,1775496650282,-387.488501,0.00014373,2]
[419907624,1775496650293,-225.159939,0.00014373,2]
[419907625,1775496650303,-520.378138,0.00014373,2]
[419907626,1775496650314,-151.0,0.00014373,2]
[419907627,1775496650324,-151.0,0.00014373,2]
[419907628,1775496650336,-225.159939,0.00014373,2]
[419907629,1775496650346,-520.378138,0.00014373,2]
[419907630,1775496650356,-2402.57982361,0.00014373,2]
[419907631,1775496650367,-151.0,0.00014373,2]
[419907632,1775496650376,-225.159939,0.00014373,2]
[419907633,1775496650387,-2180.552252,0.00014373,2]
[419907634,1775496650396,-155.71659,0.00014373,2]
[419907635,1775496650406,-151.0,0.00014373,2]
[419907636,1775496650416,-2180.552252,0.00014373,2]
[419907637,1775496650426,-155.71659,0.00014373,2]
[419907638,1775496650436,-151.0,0.00014373,2]
[419907639,1775496650446,-2180.552252,0.00014373,2]
[419907640,1775496650455,-165.72124712,0.00014373,2]
[419907641,1775496650467,-155.71659,0.00014373,2]
[419907642,1775496650477,-2180.552252,0.00014373,2]
[419907643,1775496650487,-151.0,0.00014373,2]
[419907644,1775496650496,-155.71659,0.00014373,2]
[419907645,1775496650506,-151.0,0.00014373,2]
[419907646,1775496650516,-151.0,0.00014373,2]
[419907647,1775496650527,-151.0,0.00014373,2]
[419907648,1775496650537,-151.0,0.00014373,2]
[419907649,1775496650547,-151.0,0.00014373,2]
[419907650,1775496650556,-151.0,0.00014373,2]
[419907651,1775496650567,-151.0,0.00014373,2]
[419907652,1775496650576,-224.223956,0.00014373,2]
[419907653,1775496650586,-829.030432,0.00014373,2]
[419907654,1775496650596,-829.030432,0.00014373,2]
[419907655,1775496650606,-190.410851,0.00014373,2]
[419907656,1775496650615,-829.030432,0.00014373,2]
[419907657,1775496650625,-190.410851,0.00014373,2]
[419907658,1775496650635,-829.030432,0.00014373,2]
[419907659,1775496650645,-190.410851,0.00014373,2]
[419907660,1775496650655,-416.609906,0.00014373,2]
[419907661,1775496650666,-1038.983212,0.00014373,2]
[419907662,1775496650676,-151.0,0.00014373,2]
[419907663,1775496650686,-1202.256682,0.00014373,2]
[419907664,1775496650696,-190.410851,0.00014373,2]
[419907665,1775496650706,-416.609906,0.00014373,2]
[419907666,1775496650716,-1038.983212,0.00014373,2]
[419907667,1775496650726,-151.0,0.00014373,2]
[419907668,1775496650736,-151.0,0.00014373,2]
[419907669,1775496650746,-1202.256682,0.00014373,2]
[419907670,1775496650756,-416.609906,0.00014373,2]
[419907671,1775496650765,-1038.983212,0.00014373,2]
[419907672,1775496650780,-1202.256682,0.00014373,2]
[419907673,1775496650790,-151.0,0.00014373,2]
[419907674,1775496650801,-617.722164,0.00014373,2]
[419907675,1775496650811,-272.719027,0.00014373,2]
[419907676,1775496650821,-268.8,0.00014373,2]
[419907677,1775496650831,-416.609906,0.00014373,2]
[419907678,1775496650841,-1038.983212,0.00014373,2]
[419907679,1775496650851,-1202.256682,0.00014373,2]
[419907680,1775496650861,-617.722164,0.00014373,2]
[419907681,1775496650871,-151.0,0.00014373,2]
[419907682,1775496650881,-272.719027,0.00014373,2]
[419907683,1775496650892,-268.8,0.00014373,2]
[419907684,1775496650902,-617.722164,0.00014373,2]
[419907685,1775496650912,-272.719027,0.00014373,2]
[419907686,1775496650923,-151.0,0.00014373,2]
[419907687,1775496650933,-268.8,0.00014373,2]
[419907688,1775496650943,-415.848129,0.00014373,2]
[419907689,1775496650953,-151.0,0.00014373,2]
[419907690,1775496650963,-272.719027,0.00014373,2]
[419907691,1775496650974,-151.0,0.00014373,2]
[419907692,1775496650984,-415.848129,0.00014373,2]
[419907693,1775496650994,-268.8,0.00014373,2]
[419907694,1775496651004,-415.848129,0.00014373,2]
[419907695,1775496651015,-415.848129,0.00014373,2]
[419907696,1775496651025,-1527.17,0.00014384,2]
[419907697,1775496651035,-152.0,0.00014385,8]
[419907698,1775496651046,-1721.0,0.000144,2]
[419907699,1775496651056,-2811.0,0.000144,2]
[419907700,1775496651067,-306.0,0.000144,2]
[419907701,1775496651077,-670.84839751,0.00014408,2]
[419907702,1775496651087,-500.0,0.00014408,2]
[419907703,1775496651096,-500.0,0.00014408,2]
[419907704,1775496651106,-500.0,0.00014408,2]
[419907705,1775496651116,-500.0,0.00014408,2]
[419907706,1775496651127,-500.0,0.00014408,2]
[419907707,1775496651137,-500.0,0.00014408,2]
[419907708,1775496651147,-150.0,0.00014409,2]
[419907709,1775496651156,-11353.90414891,0.00014409,2]
[419907710,1775496651166,-150.0,0.00014409,2]
[419907711,1775496651177,-66638.06243498,0.00014409,2]
[419907712,1775496651187,-150.0,0.00014409,2]
[419907713,1775496651197,-7914.28291512,0.00014409,2]
[419907714,1775496651207,-151.0,0.00014409,2]
[419907715,1775496651217,-151.0,0.00014409,2]
[419907716,1775496651227,-151.0,0.00014409,2]
[419907717,1775496651236,-151.0,0.00014409,2]
[419907718,1775496651247,-151.0,0.00014409,2]
[419907719,1775496651257,-151.0,0.00014409,2]
[419907720,1775496651267,-229.146827,0.00014409,2]
[419907721,1775496651589,-151.0,0.00014409,2]
[419907722,1775496651599,-151.0,0.00014409,2]
[419907723,1775496651608,-151.0,0.00014409,2]
[419907724,1775496651618,-151.0,0.00014409,2]
[419907725,1775496651627,-151.0,0.00014409,2]
[419907726,1775496651637,-162.535463,0.00014409,2]
[419907727,1775496651647,-162.535463,0.00014409,2]
[419907728,1775496651656,-162.535463,0.00014409,2]
[419907729,1775496651666,-173.136958,0.00014409,2]
[419907730,1775496651675,-162.535463,0.00014409,2]
[419907731,1775496651687,-173.136958,0.00014409,2]
[419907732,1775496651697,-173.136958,0.00014409,2]
[419907733,1775496651707,-173.136958,0.00014409,2]
[419907734,1775496651717,-151.0,0.00014409,2]
[419907735,1775496651726,-151.0,0.00014409,2]
[419907736,1775496651736,-151.0,0.00014409,2]
[419907737,1775496651746,-151.0,0.00014409,2]
[419907738,1775496651756,-151.0,0.00014409,2]
[419907739,1775496651767,-151.0,0.00014409,2]
[419907740,1775496651776,-151.0,0.00014409,2]
[419907741,1775496651787,-151.0,0.00014409,2]
[419907742,1775496651797,-151.0,0.00014409,2]
[419907743,1775496651806,-151.0,0.00014409,2]
[419907744,1775496651816,-151.0,0.00014409,2]
[419907745,1775496651826,-151.0,0.00014409,2]
[419907746,1775496651836,-151.0,0.00014409,2]
[419907747,1775496651846,-151.0,0.00014409,2]
[419907748,1775496651855,-151.0,0.00014409,2]
[419907749,1775496651864,-151.0,0.00014409,2]
[419907750,1775496651874,-151.0,0.00014409,2]
[419907751,1775496651883,-151.0,0.00014409,2]
[419907752,1775496651893,-151.0,0.00014409,2]
[419907753,1775496651902,-151.0,0.00014409,2]
[419907754,1775496651911,-151.0,0.00014409,2]
[419907755,1775496651921,-151.0,0.00014409,2]
[419907756,1775496651931,-151.0,0.00014409,2]
[419907757,1775496651940,-151.0,0.00014409,2]
[419907758,1775496651949,-151.0,0.00014409,2]
[419907759,1775496651958,-151.0,0.00014409,2]
[419907760,1775496651969,-151.0,0.00014409,2]
[419907761,1775496651978,-151.0,0.00014409,2]
[419907762,1775496651987,-151.0,0.00014409,2]
[419907763,1775496651996,-151.0,0.00014409,2]
[419907764,1775496652005,-151.0,0.00014409,2]
[419907765,1775496652014,-151.0,0.00014409,2]
[419907766,1775496652023,-151.0,0.00014409,2]
[419907767,1775496652033,-151.0,0.00014409,2]
[419907768,1775496652043,-151.0,0.00014409,2]
[419907769,1775496652052,-151.0,0.00014409,2]
[419907770,1775496652062,-151.0,0.00014409,2]
[419907771,1775496652071,-155.47726,0.00014409,2]
[419907772,1775496652080,-151.0,0.00014409,2]
[419907773,1775496652089,-197.879941,0.00014409,2]
[419907774,1775496652099,-151.0,0.00014409,2]
[419907775,1775496652108,-151.0,0.00014409,2]
[419907776,1775496652118,-151.0,0.00014409,2]
[419907777,1775496652127,-151.0,0.00014409,2]
[419907778,1775496652137,-151.0,0.00014409,2]
[419907779,1775496652146,-151.0,0.00014409,2]
[419907780,1775496652155,-151.0,0.00014409,2]
[419907781,1775496652164,-151.0,0.00014409,2]
[419907782,1775496652174,-151.0,0.00014409,2]
[419907783,1775496652184,-151.0,0.00014409,2]
[419907784,1775496652193,-151.0,0.00014409,2]
[419907785,1775496652203,-276.32838,0.00014409,2]
[419907786,1775496652213,-276.32838,0.00014409,2]
[419907787,1775496652222,-276.32838,0.00014409,2]
[419907788,1775496652232,-276.32838,0.00014409,2]
[419907789,1775496652241,-151.0,0.00014409,2]
[419907790,1775496652251,-151.0,0.00014409,2]
[419907791,1775496652260,-151.0,0.00014409,2]
[419907792,1775496652270,-151.0,0.00014409,2]
[419907793,1775496652279,-179.327698,0.00014409,2]
[419907794,1775496652288,-151.0,0.00014409,2]
[419907795,1775496652298,-151.0,0.00014409,2]
[419907796,1775496652307,-179.327698,0.00014409,2]
[419907797,1775496652316,-151.0,0.00014409,2]
[419907798,1775496652326,-179.327698,0.00014409,2]
[419907799,1775496652335,-151.0,0.00014409,2]
[419907800,1775496652344,-151.0,0.00014409,2]
[419907801,1775496652354,-179.327698,0.00014409,2]
[419907802,1775496652363,-280.584218,0.00014409,2]
[419907803,1775496652381,-245.770064,0.00014409,2]
[419907804,1775496652393,-280.584218,0.00014409,2]
[419907805,1775496652403,-245.770064,0.00014409,2]
[419907806,1775496652413,-280.584218,0.00014409,2]
[419907807,1775496652422,-151.0,0.00014409,2]
[419907808,1775496652432,-151.0,0.00014409,2]
[419907809,1775496652441,-245.770064,0.00014409,2]
[419907810,1775496652451,-280.584218,0.00014409,2]
[419907811,1775496652460,-245.770064,0.00014409,2]
[419907812,1775496652470,-151.0,0.00014409,2]
[419907813,1775496652480,-766.93164,0.00014409,2]
[419907814,1775496652490,-766.93164,0.00014409,2]
[419907815,1775496652500,-151.0,0.00014409,2]
[419907816,1775496652510,-766.93164,0.00014409,2]
[419907817,1775496652520,-766.93164,0.00014409,2]
[419907818,1775496652529,-1519.04079,0.00014409,2]
[419907819,1775496652539,-310.015346,0.00014409,2]
[419907820,1775496652548,-1519.04079,0.00014409,2]
[419907821,1775496652558,-310.015346,0.00014409,2]
[419907822,1775496652568,-1519.04079,0.00014409,2]
[419907823,1775496652578,-234.889848,0.00014409,2]
[419907824,1775496652589,-310.015346,0.00014409,2]
[419907825,1775496652599,-1519.04079,0.00014409,2]
[419907826,1775496652609,-310.015346,0.00014409,2]
[419907827,1775496652619,-234.889848,0.00014409,2]
[419907828,1775496652628,-151.0,0.00014409,2]
[419907829,1775496652638,-272.199966,0.00014409,2]
[419907830,1775496652648,-272.199966,0.00014409,2]
[419907831,1775496652658,-234.889848,0.00014409,2]
[419907832,1775496652668,-151.0,0.00014409,2]
[419907833,1775496652678,-234.889848,0.00014409,2]
[419907834,1775496652687,-272.199966,0.00014409,2]
[419907835,1775496652697,-151.0,0.00014409,2]
[419907836,1775496652707,-272.199966,0.00014409,2]
[419907837,1775496652717,-151.0,0.00014409,2]
[419907838,1775496652726,-151.0,0.00014409,2]
[419907839,1775496652735,-534.952328,0.00014409,2]
[419907840,1775496652745,-151.0,0.00014409,2]
[419907841,1775496652755,-534.952328,0.00014409,2]
[419907842,1775496652765,-534.952328,0.00014409,2]
[419907843,1775496652775,-534.952328,0.00014409,2]
[419907844,1775496652784,-553.482395,0.00014409,2]
[419907845,1775496652794,-402.8195,0.00014409,2]
[419907846,1775496652804,-553.482395,0.00014409,2]
[419907847,1775496652814,-402.8195,0.00014409,2]
[419907848,1775496652823,-261.551929,0.00014409,2]
[419907849,1775496652833,-151.0,0.00014409,2]
[419907850,1775496652843,-553.482395,0.00014409,2]
[419907851,1775496652853,-402.8195,0.00014409,2]
[419907852,1775496652863,-253.665438,0.00014409,2]
[419907853,1775496652873,-261.551929,0.00014409,2]
[419907854,1775496652883,-553.482395,0.00014409,2]
[419907855,1775496652898,-2928.765062,0.00014409,2]
[419907856,1775496652907,-151.0,0.00014409,2]
[419907857,1775496652917,-402.8195,0.00014409,2]
[419907858,1775496652927,-253.665438,0.00014409,2]
[419907859,1775496652937,-261.551929,0.00014409,2]
[419907860,1775496652947,-2928.765062,0.00014409,2]
[419907861,1775496652956,-151.0,0.00014409,2]
[419907862,1775496652966,-253.665438,0.00014409,2]
[419907863,1775496652976,-2928.765062,0.00014409,2]
[419907864,1775496652985,-151.0,0.00014409,2]
[419907865,1775496652995,-253.665438,0.00014409,2]
[419907866,1775496653004,-500.0,0.00014473,2]
[419907867,1775496653014,-623.42048552,0.00014473,2]
[419907868,1775496653024,-500.0,0.00014473,2]
[419907869,1775496653034,-500.0,0.00014473,2]
[419907870,1775496653043,-500.0,0.00014473,2]
[419907871,1775496653053,-500.0,0.00014473,2]
[419907872,1775496653063,-500.0,0.00014473,2]
[419907873,1775496653073,-501.7767113,0.00014473,2]
[419907874,1775496653083,-500.90594274,0.00014473,2]
[419907875,1775496653092,-500.0,0.00014473,2]
[419907876,1775496653102,-500.25654321,0.00014473,2]
[419907877,1775496653112,-556.68829625,0.00014473,2]
[419907878,1775496653121,-1000.0,0.000145,2]
[419907879,1775496653131,-313.0,0.000145,2]
[419907880,1775496653140,-3292.0,0.00014505,2]
[419907881,1775496653154,-500.0,0.00014506,2]
[419907882,1775496653164,-347.65580151,0.0001451,2]
[419907883,1775496653174,-869.63,0.00014521,2]
[419907884,1775496653184,-5372.50071432,0.00014527,2]
[419907885,1775496653194,-1536.04360649,0.00014687,2]
[419907886,1775496653204,-200.0,0.00014687,2]
[419907887,1775496653214,-194.72792766,0.00014687,2]
[419907888,1775496653224,-232.0,0.00014708,2]
[419907889,1775496653234,-150.0,0.00014714,2]
[419907890,1775496653243,-1573.0,0.0001472,2]
[419907891,1775496653253,-162.0,0.0001472,2]
[419907892,1775496653263,-162.0,0.0001472,2]
[419907893,1775496653273,-1650.0,0.00014723,2]
[419907894,1775496653284,-1650.0,0.00014723,2]
[419907895,1775496653294,-1650.0,0.00014723,2]
[419907896,1775496653304,-1650.0,0.00014723,2]
[419907897,1775496653313,-1650.0,0.00014723,2]
[419907898,1775496653323,-1650.0,0.00014723,2]
[419907899,1775496653333,-1650.0,0.00014723,2]
[419907900,1775496653343,-1650.0,0.00014723,2]
[419907901,1775496653353,-1650.0,0.00014723,2]
[419907902,1775496653363,-1429.0,0.00014723,2]
[419907903,1775496653373,-24269.42299238,0.00014767,2]
[419907904,1775496653383,-152.0,0.00014781,9]
[419907905,1775496653392,-507.68723107,0.00014795,2]
[419907906,1775496653407,-1500.0,0.00014795,2]
[419907907,1775496653417,-1000.0,0.00014795,2]
[419907908,1775496653426,-1500.0,0.00014795,2]
[419907909,1775496653437,-1500.0,0.00014795,2]
[419907910,1775496653447,-1500.0,0.00014795,2]
[419907911,1775496653456,-967.27624458,0.00014795,2]
[419907912,1775496653466,-1500.0,0.00014795,2]
[419907913,1775496653476,-250.0,0.00014795,2]
[419907914,1775496653486,-1002.38345073,0.00014821,2]
[419907915,1775496653496,-1038.69136306,0.00014821,2]
[419907916,1775496653506,-505.26388851,0.00014821,2]
[419907917,1775496653515,-500.0,0.00014863,2]
[419907918,1775496653526,-210.7418,0.000149,2]
[419907919,1775496653536,-1653.92465572,0.000149,2]
[419907920,1775496653547,-150.0,0.00014957,2]
[419907921,1775496653557,-500.0,0.00014958,3]
[419907922,1775496653567,-176.41,0.00014966,2]
[419907923,1775496653576,-163.75,0.0001497,2]
[419907924,1775496653587,-300.0,0.00015,2]
[419907925,1775496653598,-7724.0,0.00015,15]
[419907926,1775496653608,-2000.0,0.00015,2]
[419907927,1775496653617,-500.84806746,0.00015021,2]
[419907928,1775496653627,-1000.0,0.00015021,2]
[419907929,1775496653636,-1000.0,0.00015021,2]
[419907930,1775496653646,-500.0,0.00015021,2]
[419907931,1775496653655,-1000.0,0.00015021,2]
[419907932,1775496653666,-2811.0,0.0001504,2]
[419907933,1775496653675,-2811.0,0.0001504,2]
[419907934,1775496653685,-500.0,0.00015058,2]
[419907935,1775496653695,-2000.0,0.00015058,2]
[419907936,1775496653705,-2000.0,0.00015058,2]
[419907937,1775496653715,-500.0,0.00015058,2]
[419907938,1775496653725,-1527.17,0.00015068,2]
[419907939,1775496653735,-151.0,0.00015068,2]
[419907940,1775496653746,-800.0,0.00015068,2]
[419907941,1775496653756,-198.48074007,0.00015078,2]
[419907942,1775496653767,-344.12797301,0.000151,2]
[419907943,1775496653777,-2000.0,0.000151,2]
[419907944,1775496653787,-375.36655272,0.00015105,2]
[419907945,1775496653797,-150.0,0.00015117,2]
[419907946,1775496653806,-3377.4448711,0.00015118,2]
[419907947,1775496653816,-2402.5798236,0.00015137,2]
[419907948,1775496653826,-152.0,0.00015178,10]
[419907949,1775496653836,-3000.0,0.00015178,2]
[419907950,1775496653846,-1500.0,0.00015178,2]
[419907951,1775496653855,-1311.204456,0.000152,2]
[419907952,1775496653864,-1148.372646,0.000152,2]
[419907953,1775496653874,-2000.0,0.000152,2]
[419907954,1775496653885,-787.35032651,0.00015205,2]
[419907955,1775496653895,-5372.50071432,0.00015213,2]